bitfinex-derivatives/quotes_BTCF0:USTF0_20241210
["timestamp","ask_amount","ask_price","bid_price","bid_amount"]
[1733829342886,0.1030106,97658.0,97657.0,0.064176]
[1733829345488,0.052297,97658.0,97657.0,0.064176]
[1733829345686,0.10248298,97658.0,97657.0,0.064176]
[1733829347184,0.052297,97658.0,97657.0,0.064176]
[1733829347491,0.20544301,97658.0,97657.0,0.064176]
[1733829349491,0.052297,97658.0,97657.0,0.064176]
[1733829349797,0.20544301,97658.0,97657.0,0.064176]
[1733829350091,0.052297,97658.0,97657.0,0.064176]
[1733829351389,0.052297,97658.0,97657.0,0.10896898]
[1733829351390,0.46325346,97658.0,97657.0,0.10896898]
[1733829352494,0.46325346,97658.0,97657.0,0.05779298]
[1733829352797,0.46325346,97658.0,97657.0,0.002]
[1733829352798,0.46325246,97658.0,97657.0,0.002]
[1733829354593,0.46322495,97658.0,97657.0,0.002]
[1733829354793,0.46222495,97658.0,97657.0,0.005]
[1733829356591,0.64579844,97658.0,97657.0,0.005]
[1733829356788,0.46222495,97658.0,97657.0,0.005]
[1733829357497,0.64578935,97658.0,97657.0,0.005]
[1733829358001,0.46222495,97658.0,97657.0,0.005]
[1733829358297,0.051183,97643.0,97629.0,0.05119]
[1733829358501,0.7216,97640.0,97638.0,0.051186]
[1733829358796,0.051306,97639.0,97638.0,0.051186]
[1733829359204,0.051306,97639.0,97638.0,0.09607811]
[1733829359498,0.17362178,97639.0,97638.0,0.09607722]
[1733829360201,0.052306,97639.0,97638.0,0.09607722]
[1733829361093,0.052306,97639.0,97638.0,0.05127576]
[1733829361290,0.053306,97639.0,97638.0,0.05727576]
[1733829364999,0.053306,97639.0,97638.0,0.08287576]
[1733829367497,0.15506422,97639.0,97638.0,0.08287576]
[1733829367697,0.00212,97639.0,97638.0,0.08287576]
[1733829368000,0.053306,97639.0,97638.0,0.08287576]
[1733829368203,0.053306,97639.0,97630.0,0.06000891]
[1733829368396,0.3608,97631.0,97630.0,0.06000891]
[1733829368593,0.36092,97631.0,97630.0,0.10481194]
[1733829369304,0.41211,97631.0,97630.0,0.10491106]
[1733829369511,0.41211,97631.0,97630.0,0.11091106]
[1733829370206,0.36192,97631.0,97630.0,0.11091106]
[1733829370702,0.413115,97631.0,97630.0,0.10209215]
[1733829371000,0.413115,97631.0,97630.0,0.05728912]
[1733829372096,0.413115,97631.0,97630.0,0.05628912]
[1733829372299,0.413115,97631.0,97630.0,0.10109507]
[1733829372598,0.413115,97631.0,97630.0,0.04990559]
[1733829372804,0.413115,97631.0,97630.0,0.00509912]
[1733829373002,0.46289627,97631.0,97630.0,0.00509912]
[1733829373195,0.051201,97619.0,97617.0,0.051922]
[1733829373399,0.3608,97619.0,97617.0,0.00072]
[1733829373594,0.051202,97618.0,97617.0,0.00072]
[1733829374000,0.051322,97618.0,97617.0,0.00072]
[1733829374201,0.051322,97618.0,97617.0,0.00079207]
[1733829375007,0.044322,97618.0,97617.0,0.00079207]
[1733829375603,0.045322,97618.0,97617.0,0.00079207]
[1733829375804,0.045322,97618.0,97617.0,0.00579207]
[1733829375805,0.046322,97618.0,97617.0,0.00579207]
[1733829377305,0.16853766,97618.0,97617.0,0.00579207]
[1733829377502,0.046322,97618.0,97617.0,0.00579207]
[1733829378609,0.046322,97618.0,97617.0,0.00507207]
[1733829380404,0.046322,97618.0,97617.0,0.05627407]
[1733829382699,0.045322,97618.0,97617.0,0.05627407]
[1733829382901,0.15403174,97618.0,97617.0,0.05627407]
[1733829383110,0.00112,97618.0,97617.0,0.05627407]
[1733829383407,0.15403174,97618.0,97617.0,0.05627407]
[1733829383613,0.15392975,97618.0,97608.0,0.0388442]
[1733829383806,0.45248617,97609.0,97608.0,0.0900512]
[1733829384006,0.45260785,97609.0,97608.0,0.13486484]
[1733829384198,0.36092,97609.0,97608.0,0.13486484]
[1733829384711,0.36092,97609.0,97608.0,0.13498891]
[1733829384712,0.45261134,97609.0,97608.0,0.13498891]
[1733829384915,0.36092,97609.0,97608.0,0.13498891]
[1733829385300,0.45260627,97609.0,97608.0,0.13498891]
[1733829385514,0.36192,97609.0,97608.0,0.13498891]
[1733829386401,0.36192,97609.0,97608.0,0.13498993]
[1733829386909,0.36192,97609.0,97608.0,0.09017527]
[1733829387104,0.36192,97609.0,97608.0,0.13499079]
[1733829387301,0.48416793,97609.0,97608.0,0.13499079]
[1733829387503,0.36192,97609.0,97608.0,0.13499079]
[1733829387810,0.48417976,97609.0,97608.0,0.13499079]
[1733829388011,0.36192,97609.0,97608.0,0.13499079]
[1733829388208,0.48418004,97609.0,97608.0,0.13499079]
[1733829388412,0.48418004,97609.0,97608.0,0.09017527]
[1733829388605,0.48417953,97609.0,97608.0,0.09017527]
[1733829388807,0.48417783,97609.0,97608.0,0.13499054]
[1733829389011,0.4841775,97609.0,97608.0,0.13499054]
[1733829389206,0.36192,97609.0,97608.0,0.13499054]
[1733829389613,0.48416941,97609.0,97608.0,0.13499054]
[1733829389919,0.36192,97609.0,97608.0,0.13499054]
[1733829390511,0.36192,97609.0,97608.0,0.09017527]
[1733829390815,0.36192,97609.0,97608.0,0.13499114]
[1733829391320,0.413126,97609.0,97608.0,0.13499114]
[1733829391709,0.413126,97609.0,97608.0,0.10489114]
[1733829391904,0.413126,97609.0,97608.0,0.06007527]
[1733829392108,0.413126,97609.0,97608.0,0.10489244]
[1733829392314,0.413126,97609.0,97608.0,0.06007527]
[1733829393517,0.36192,97609.0,97608.0,0.06007527]
[1733829395313,0.36192,97609.0,97608.0,0.00012407]
[1733829395314,0.51472975,97609.0,97608.0,0.00012407]
[1733829395509,0.51472975,97609.0,97604.0,0.051209]
[1733829395510,0.051209,97605.0,97604.0,0.051209]
[1733829395719,0.41059151,97605.0,97600.0,0.001509]
[1733829395910,0.051211,97601.0,97600.0,0.001509]
[1733829396107,0.10112251,97601.0,97600.0,0.001509]
[1733829396714,0.04991151,97601.0,97600.0,0.05272]
[1733829397817,0.00012,97601.0,97600.0,0.05272]
[1733829398017,0.00012,97601.0,97600.0,0.09754072]
[1733829398018,0.12237236,97601.0,97600.0,0.09754072]
[1733829398224,0.00012,97601.0,97600.0,0.09754072]
[1733829398518,0.1223952,97601.0,97600.0,0.09754072]
[1733829398913,0.1233952,97601.0,97600.0,0.09754072]
[1733829399417,0.00112,97601.0,97600.0,0.09754072]
[1733829400214,0.36192,97601.0,97600.0,0.09754072]
[1733829401016,0.36192,97601.0,97600.0,0.05272]
[1733829401218,0.36192,97601.0,97600.0,0.09753846]
[1733829401518,0.36192,97601.0,97600.0,0.05272]
[1733829404311,0.36192,97601.0,97600.0,0.09753836]
[1733829404820,0.36192,97601.0,97600.0,0.11422836]
[1733829407325,0.36192,97601.0,97600.0,0.06941]
[1733829407326,0.51472827,97601.0,97600.0,0.06941]
[1733829408125,0.51472827,97601.0,97600.0,0.11422881]
[1733829409123,0.51472827,97601.0,97600.0,0.06941]
[1733829409513,0.51472827,97601.0,97600.0,0.11422878]
[1733829410223,0.36192,97601.0,97600.0,0.11422878]
[1733829410618,0.41171208,97601.0,97600.0,0.11422878]
[1733829410819,0.51489945,97601.0,97600.0,0.11422878]
[1733829411018,0.51489945,97601.0,97600.0,0.06941]
[1733829412626,0.46292309,97601.0,97600.0,0.11422909]
[1733829413025,0.64651296,97601.0,97600.0,0.11422909]
[1733829413225,0.59530196,97601.0,97588.0,0.051217]
[1733829413423,0.3608,97589.0,97588.0,0.051217]
[1733829413622,0.05122,97584.0,97583.0,0.05122]
[1733829413823,0.46181995,97584.0,97583.0,0.05122]
[1733829414028,0.64549437,97584.0,97583.0,0.05122]
[1733829414325,0.41071995,97584.0,97583.0,0.05122]
[1733829414722,0.36092,97584.0,97583.0,0.05122]
[1733829415324,0.51375385,97584.0,97583.0,0.05122]
[1733829415722,0.36092,97584.0,97583.0,0.05122]
[1733829415919,0.51375385,97584.0,97583.0,0.05122]
[1733829416132,0.36092,97584.0,97583.0,0.05122]
[1733829418022,0.36192,97584.0,97583.0,0.05122]
[1733829420330,0.41314,97584.0,97583.0,0.05122]
[1733829425637,0.56597385,97584.0,97583.0,0.05122]
[1733829425935,0.41314,97584.0,97583.0,0.05122]
[1733829433244,0.77394,97584.0,97583.0,0.05122]
[1733829434147,0.77394,97584.0,97555.0,0.24494776]
[1733829434356,0.051226,97574.0,97573.0,0.051224]
[1733829434544,0.412026,97574.0,97573.0,0.051224]
[1733829434849,0.53422792,97574.0,97573.0,0.09605537]
[1733829435742,0.412026,97574.0,97573.0,0.051224]
[1733829436348,0.413026,97574.0,97573.0,0.051224]
[1733829438146,0.56585985,97574.0,97573.0,0.051224]
[1733829438538,0.413026,97574.0,97573.0,0.051224]
[1733829439951,0.56585985,97574.0,97573.0,0.051224]
[1733829440151,0.56585985,97574.0,97568.0,0.00914261]
[1733829440353,0.05123,97565.0,97564.0,0.051228]
[1733829440552,0.05123,97565.0,97564.0,0.09606289]
[1733829441147,0.12230452,97567.0,97564.0,0.09606289]
[1733829441148,0.12230452,97567.0,97564.0,0.04483489]
[1733829441356,0.12230452,97565.0,97564.0,0.05123]
[1733829441543,0.12230452,97565.0,97564.0,0.09606489]
[1733829442055,0.12330452,97565.0,97564.0,0.09606489]
[1733829442351,0.001,97565.0,97564.0,0.09606489]
[1733829443462,0.002,97565.0,97564.0,0.09606489]
[1733829443846,0.05323,97565.0,97564.0,0.09606489]
[1733829444146,0.05323,97565.0,97564.0,0.05123]
[1733829445355,0.10304383,97565.0,97564.0,0.05123]
[1733829446352,0.10304258,97565.0,97564.0,0.05123]
[1733829447559,0.10204258,97565.0,97564.0,0.05123]
[1733829447755,0.10204258,97565.0,97564.0,0.09606751]
[1733829448443,0.15397095,97565.0,97564.0,0.05123]
[1733829448643,0.05397095,97566.0,97565.0,0.05123]
[1733829448850,0.3608,97569.0,97565.0,0.05123]
[1733829448851,0.412027,97569.0,97568.0,0.051228]
[1733829449057,0.412027,97569.0,97565.0,0.04483668]
[1733829449058,0.051229,97566.0,97565.0,0.051229]
[1733829449257,0.051229,97566.0,97565.0,0.0960657]
[1733829449443,0.051349,97566.0,97565.0,0.051229]
[1733829449650,0.00012,97566.0,97565.0,0.09606616]
[1733829450453,0.00012,97566.0,97565.0,0.09606593]
[1733829450653,0.00112,97566.0,97565.0,0.051229]
[1733829452754,0.36192,97566.0,97565.0,0.06046577]
[1733829458852,0.36192,97566.0,97565.0,0.10529795]
[1733829463059,0.36192,97566.0,97565.0,0.13779795]
[1733829464857,0.36192,97566.0,97565.0,0.09296577]
[1733829466764,0.36192,97566.0,97565.0,0.1377968]
[1733829466955,0.00112,97566.0,97565.0,0.1377968]
[1733829467153,0.36192,97566.0,97565.0,0.1377968]
[1733829472260,0.45363869,97566.0,97565.0,0.1377968]
[1733829472866,0.36192,97566.0,97565.0,0.1377968]
[1733829473264,0.36192,97566.0,97565.0,0.09606003]
[1733829473470,0.413149,97566.0,97561.0,0.18413607]
[1733829473771,0.36092,97562.0,97561.0,0.051232]
[1733829474871,0.36192,97562.0,97561.0,0.052232]
[1733829481481,0.36192,97562.0,97561.0,0.09706744]
[1733829482685,0.48419319,97562.0,97561.0,0.09706744]
[1733829483371,0.12339319,97562.0,97561.0,0.09706744]
[1733829483580,0.48419319,97562.0,97561.0,0.09706744]
[1733829483770,0.36192,97562.0,97561.0,0.09706744]
[1733829484177,0.48419319,97562.0,97561.0,0.09706744]
[1733829484783,0.36192,97562.0,97561.0,0.09706744]
[1733829485077,0.36192,97562.0,97561.0,0.052232]
[1733829485672,0.48419715,97562.0,97561.0,0.052232]
[1733829486875,0.36192,97562.0,97561.0,0.052232]
[1733829487687,0.36192,97562.0,97561.0,0.09706877]
[1733829488281,0.36192,97562.0,97561.0,0.052232]
[1733829488484,0.36192,97562.0,97561.0,0.09706876]
[1733829488678,0.36192,97562.0,97561.0,0.052232]
[1733829488981,0.36192,97562.0,97561.0,0.09706923]
[1733829491181,0.36192,97562.0,97561.0,0.09706901]
[1733829493183,0.4536341,97562.0,97561.0,0.09706901]
[1733829493691,0.36192,97562.0,97561.0,0.09706901]
[1733829494886,0.4536341,97562.0,97561.0,0.09706901]
[1733829495283,0.36192,97562.0,97561.0,0.09706901]
[1733829495482,0.45364367,97562.0,97561.0,0.09706901]
[1733829496088,0.36192,97562.0,97561.0,0.09706901]
[1733829496286,0.45364801,97562.0,97561.0,0.09706901]
[1733829497983,0.36192,97562.0,97561.0,0.09706901]
[1733829498180,0.36192,97562.0,97561.0,0.34201677]
[1733829498589,0.36192,97562.0,97561.0,0.09706901]
[1733829498791,0.36192,97562.0,97561.0,0.34201677]
[1733829498993,0.45364801,97562.0,97561.0,0.34201677]
[1733829499387,0.36192,97562.0,97561.0,0.29717976]
[1733829499590,0.36192,97562.0,97561.0,0.052232]
[1733829499984,0.36192,97562.0,97561.0,0.29717976]
[1733829500489,0.36192,97562.0,97561.0,0.34201138]
[1733829501490,0.45363297,97562.0,97561.0,0.34262046]
[1733829501691,0.36192,97562.0,97561.0,0.09706346]
[1733829501892,0.36192,97562.0,97561.0,0.052232]
[1733829504896,0.36192,97562.0,97561.0,0.0970631]
[1733829507494,0.45362542,97562.0,97561.0,0.052232]
[1733829507903,0.36192,97562.0,97561.0,0.052232]
[1733829508090,0.36192,97562.0,97561.0,0.0970631]
[1733829508487,0.36192,97562.0,97561.0,0.34264129]
[1733829508692,0.36192,97562.0,97561.0,0.0970631]
[1733829516998,0.36192,97562.0,97561.0,0.1002653]
[1733829518697,0.453628,97562.0,97561.0,0.1002653]
[1733829519106,0.36192,97562.0,97561.0,0.1002653]
[1733829519406,0.453628,97562.0,97561.0,0.1002653]
[1733829520109,0.092828,97562.0,97561.0,0.1002653]
[1733829520404,0.00112,97562.0,97561.0,0.1002653]
[1733829521199,0.00112,97562.0,97561.0,0.4068113]
[1733829522404,0.48307977,97566.0,97565.0,0.051229]
[1733829522704,0.3608,97566.0,97565.0,0.32698524]
[1733829523005,0.3608,97566.0,97565.0,0.63423868]
[1733829523006,0.45267,97566.0,97565.0,0.63423868]
[1733829523214,0.3608,97566.0,97565.0,0.40657574]
[1733829523401,0.45266786,97566.0,97565.0,0.40657574]
[1733829524202,0.45266786,97566.0,97565.0,0.44096864]
[1733829524404,0.3608,97566.0,97565.0,0.43776644]
[1733829524602,0.3608,97566.0,97565.0,0.4409685]
[1733829524802,0.3608,97566.0,97565.0,0.43776644]
[1733829525004,0.3608,97566.0,97565.0,0.4409685]
[1733829525400,0.3618,97566.0,97565.0,0.10132216]
[1733829528909,0.45364397,97566.0,97565.0,0.0981201]
[1733829531810,0.3618,97566.0,97565.0,0.0981201]
[1733829532006,0.3618,97566.0,97565.0,0.053289]
[1733829538821,0.3618,97566.0,97565.0,0.0981201]
[1733829539319,0.3618,97566.0,97565.0,0.13245334]
[1733829539320,0.3041628,97566.0,97565.0,0.13245334]
[1733829540223,0.3041628,97566.0,97565.0,0.43970678]
[1733829540420,0.3041628,97566.0,97565.0,0.0981201]
[1733829541019,0.42663076,97566.0,97565.0,0.29905646]
[1733829541323,0.3347628,97566.0,97565.0,0.09812182]
[1733829543219,0.3041628,97566.0,97565.0,0.09812182]
[1733829543417,0.42662845,97566.0,97565.0,0.34388928]
[1733829543720,0.3041628,97566.0,97565.0,0.09812182]
[1733829545120,0.3041628,97566.0,97565.0,0.10132411]
[1733829546424,0.3041628,97566.0,97565.0,0.10132398]
[1733829546624,0.3041628,97566.0,97565.0,0.36150467]
[1733829547623,0.3041628,97566.0,97565.0,0.05649116]
[1733829547824,0.42662351,97566.0,97565.0,0.10132102]
[1733829548125,0.42662351,97566.0,97565.0,0.28241176]
[1733829548126,0.3041628,97566.0,97565.0,0.28241176]
[1733829548327,0.3041628,97566.0,97565.0,0.09811886]
[1733829549027,0.3041628,97566.0,97565.0,0.28241176]
[1733829549525,0.3041628,97566.0,97565.0,0.09811886]
[1733829549935,0.3041628,97566.0,97565.0,0.28241176]
[1733829550133,0.3041628,97566.0,97565.0,0.28561417]
[1733829550624,0.3041628,97566.0,97565.0,0.34704631]
[1733829550826,0.3041628,97566.0,97565.0,0.10132127]
[1733829551426,0.3041628,97566.0,97565.0,0.34697864]
[1733829551634,0.3041628,97566.0,97565.0,0.10132127]
[1733829552125,0.39598274,97566.0,97565.0,0.10132127]
[1733829552336,0.39598274,97566.0,97565.0,0.09811886]
[1733829552529,0.39598274,97566.0,97565.0,0.10132099]
[1733829553527,0.3041628,97566.0,97565.0,0.10132099]
[1733829554432,0.39598372,97566.0,97565.0,0.10132099]
[1733829555236,0.39598372,97566.0,97565.0,0.10132101]
[1733829555433,0.3041628,97566.0,97565.0,0.10132101]
[1733829555639,0.39598372,97566.0,97565.0,0.10132101]
[1733829555829,0.3041628,97566.0,97565.0,0.10132101]
[1733829556437,0.39596571,97566.0,97565.0,0.10132101]
[1733829557537,0.3041628,97566.0,97565.0,0.10132101]
[1733829557836,0.39596571,97566.0,97565.0,0.10132101]
[1733829558227,0.3041628,97566.0,97565.0,0.09811886]
[1733829558432,0.3041628,97566.0,97565.0,0.10132099]
[1733829558836,0.39596571,97566.0,97565.0,0.10132099]
[1733829560226,0.3041628,97566.0,97565.0,0.10132099]
[1733829560731,0.3041628,97566.0,97565.0,0.13570243]
[1733829560939,0.3041628,97566.0,97565.0,0.10132099]
[1733829561440,0.3041628,97566.0,97565.0,0.10132101]
[1733829561835,0.39596571,97566.0,97565.0,0.09811886]
[1733829562037,0.39596571,97566.0,97565.0,0.10132101]
[1733829562743,0.3041628,97566.0,97565.0,0.10132101]
[1733829567738,0.3041628,97566.0,97565.0,0.30219565]
[1733829567953,0.42651487,97566.0,97565.0,0.30219565]
[1733829568240,0.42651487,97566.0,97565.0,0.05649115]
[1733829568447,0.3041628,97566.0,97565.0,0.34702794]
[1733829570947,0.3041628,97566.0,97565.0,0.34702799]
[1733829571152,0.3041628,97566.0,97565.0,0.10132209]
[1733829572437,0.42651487,97566.0,97565.0,0.0564912]
[1733829572741,0.3041628,97566.0,97565.0,0.0564912]
[1733829575538,0.3041628,97566.0,97565.0,0.10132566]
[1733829577151,0.3041628,97566.0,97565.0,0.05009666]
[1733829577340,0.40520486,97566.0,97553.0,0.24574078]
[1733829577558,0.3608,97554.0,97553.0,0.24574078]
[1733829577744,0.56491871,97554.0,97551.0,0.051237]
[1733829577938,0.0642,97553.0,97551.0,0.051237]
[1733829578144,0.36092,97552.0,97547.0,0.051239]
[1733829578446,0.00012,97548.0,97540.0,0.06603277]
[1733829578646,0.3608,97541.0,97540.0,0.11727577]
[1733829578847,0.36092,97541.0,97540.0,0.11727577]
[1733829579049,0.36092,97541.0,97540.0,0.06069108]
[1733829579646,0.36092,97541.0,97540.0,0.06269108]
[1733829580154,0.36192,97541.0,97540.0,0.06269108]
[1733829581143,0.36292,97541.0,97540.0,0.06069108]
[1733829587042,0.31292,97541.0,97540.0,0.06069108]
[1733829587247,0.00212,97541.0,97540.0,0.06069108]
[1733829587446,0.3608,97552.0,97541.0,0.051242]
[1733829587646,0.3608,97552.0,97551.0,0.051237]
[1733829588043,0.3608,97561.0,97560.0,0.051232]
[1733829589252,0.3608,97561.0,97560.0,0.05443448]
[1733829589451,0.3618,97561.0,97560.0,0.05443448]
[1733829590254,0.3618,97561.0,97560.0,0.051232]
[1733829593056,0.3618,97561.0,97560.0,0.05443446]
[1733829593457,0.3618,97561.0,97560.0,0.06399275]
[1733829596659,0.001,97561.0,97560.0,0.10882621]
[1733829596957,0.001,97561.0,97560.0,0.06399275]
[1733829597665,0.001,97561.0,97560.0,0.10882621]
[1733829597962,0.001,97561.0,97560.0,0.06399275]
[1733829598261,0.001,97561.0,97560.0,0.06079029]
[1733829601351,0.001,97561.0,97560.0,0.10562134]
[1733829602459,0.001,97561.0,97560.0,0.06079029]
[1733829604166,0.001,97561.0,97560.0,0.0639925]
[1733829604763,0.001,97561.0,97560.0,0.10882346]
[1733829605348,0.001,97561.0,97560.0,0.0639925]
[1733829606150,0.001,97561.0,97560.0,0.10882344]
[1733829606352,0.001,97561.0,97560.0,0.10882342]
[1733829606656,0.3608,97569.0,97560.0,0.10882342]
[1733829606858,0.3608,97569.0,97568.0,0.051228]
[1733829607054,0.3608,97569.0,97568.0,0.05449019]
[1733829607257,0.3608,97569.0,97568.0,0.09931898]
[1733829607762,0.3618,97569.0,97568.0,0.05449019]
[1733829607956,0.3628,97569.0,97568.0,0.05449019]
[1733829608156,0.3628,97569.0,97568.0,0.05449]
[1733829609164,0.3618,97569.0,97568.0,0.05449]
[1733829609371,0.3648,97569.0,97568.0,0.05449]
[1733829609962,0.3648,97569.0,97568.0,0.06409982]
[1733829611656,0.3648,97569.0,97568.0,0.10892832]
[1733829613865,0.3648,97569.0,97568.0,0.01287182]
[1733829614168,0.416027,97569.0,97568.0,0.003262]
[1733829614558,0.56835411,97569.0,97568.0,0.003262]
[1733829614760,0.416027,97569.0,97568.0,0.003262]
[1733829615468,0.46584052,97569.0,97568.0,0.003262]
[1733829617364,0.64863305,97569.0,97568.0,0.05449]
[1733829617562,0.46584052,97569.0,97568.0,0.05449]
[1733829618456,0.46584052,97569.0,97559.0,0.06603277]
[1733829618663,0.3608,97560.0,97559.0,0.11726577]
[1733829618863,0.36092,97560.0,97559.0,0.051233]
[1733829619058,0.36092,97560.0,97559.0,0.06089337]
[1733829620361,0.48393646,97560.0,97559.0,0.06189337]
[1733829620761,0.36192,97560.0,97559.0,0.06189337]
[1733829620957,0.413152,97560.0,97559.0,0.001]
[1733829621165,0.46296954,97560.0,97559.0,0.001]
[1733829622374,0.46296954,97560.0,97533.0,0.03441922]
[1733829622585,0.46296954,97560.0,97535.0,0.24493978]
[1733829622586,0.3608,97543.0,97535.0,0.24493978]
[1733829622768,0.36092,97543.0,97542.0,0.09608365]
[1733829624064,0.36092,97543.0,97542.0,0.10659661]
[1733829624264,0.36092,97543.0,97542.0,0.06175396]
[1733829624674,0.36192,97543.0,97542.0,0.06175396]
[1733829626376,0.00112,97543.0,97542.0,0.06175396]
[1733829626768,0.00112,97543.0,97542.0,0.1065935]
[1733829627372,0.00112,97543.0,97542.0,0.06175396]
[1733829627874,0.00112,97543.0,97542.0,0.10659303]
[1733829629974,0.00112,97543.0,97542.0,0.06175396]
[1733829630179,0.00112,97543.0,97542.0,0.10659303]
[1733829630680,0.00112,97543.0,97542.0,0.10979574]
[1733829631069,0.00112,97543.0,97542.0,0.10659303]
[1733829631279,0.00112,97543.0,97542.0,0.10979573]
[1733829632076,0.00112,97543.0,97542.0,0.3549904]
[1733829633772,0.00112,97543.0,97542.0,0.10979573]
[1733829634372,0.00112,97543.0,97542.0,0.10979574]
[1733829641178,0.00112,97543.0,97542.0,0.06495667]
[1733829641572,0.00112,97543.0,97542.0,0.60423719]
[1733829641773,0.00112,97543.0,97542.0,0.37113141]
[1733829642375,0.00012,97543.0,97542.0,0.37013141]
[1733829642590,0.00112,97543.0,97542.0,0.29706246]
[1733829645874,0.00012,97543.0,97542.0,0.29706246]
[1733829646075,0.00112,97543.0,97542.0,0.29706246]
[1733829647377,0.00112,97543.0,97542.0,0.29706248]
[1733829648276,0.00112,97543.0,97542.0,0.3314817]
[1733829648881,0.00112,97543.0,97542.0,0.44512524]
[1733829649189,0.00112,97543.0,97542.0,0.41070602]
[1733829649379,0.00112,97543.0,97542.0,0.29706248]
[1733829650579,0.00112,97543.0,97542.0,0.29706244]
[1733829653987,0.3608,97551.0,97550.0,0.051237]
[1733829654179,0.3608,97551.0,97550.0,0.0544397]
[1733829654380,0.3608,97551.0,97550.0,0.0544997]
[1733829655295,0.12193593,97558.0,97554.0,0.051235]
[1733829655585,0.12215945,97559.0,97558.0,0.051233]
[1733829655791,0.12215945,97559.0,97558.0,0.0544357]
[1733829655987,0.12215954,97560.0,97559.0,0.051233]
[1733829656187,0.12215954,97560.0,97559.0,0.0544357]
[1733829656381,0.12215954,97561.0,97559.0,0.0032627]
[1733829656581,0.12215954,97561.0,97560.0,0.30023337]
[1733829656882,0.12215954,97561.0,97560.0,0.30029337]
[1733829657082,0.12215954,97561.0,97560.0,0.30029307]
[1733829658087,0.12415954,97561.0,97560.0,0.30029307]
[1733829658483,0.002,97561.0,97560.0,0.0544944]
[1733829659494,0.002,97561.0,97560.0,0.0554944]
[1733829661488,0.0332,97581.0,97561.0,0.051231]
[1733829661489,0.48295954,97573.0,97561.0,0.051231]
[1733829661684,0.48295954,97573.0,97560.0,0.41914258]
[1733829661685,0.3608,97573.0,97572.0,0.051226]
[1733829661880,0.3608,97573.0,97572.0,0.0544284]
[1733829662289,0.3608,97573.0,97572.0,0.0544884]
[1733829662793,0.3628,97573.0,97572.0,0.0544884]
[1733829663387,0.3678,97573.0,97572.0,0.0544884]
[1733829663699,0.3688,97573.0,97572.0,0.0544884]
[1733829664993,0.3668,97573.0,97572.0,0.0544884]
[1733829665583,0.3668,97573.0,97572.0,0.05448801]
[1733829666888,0.006,97573.0,97572.0,0.06427964]
[1733829667489,0.006,97573.0,97572.0,0.06107763]
[1733829668794,0.006,97573.0,97572.0,0.00985163]
[1733829669090,0.17938454,97573.0,97572.0,6e-05]
[1733829669287,0.24258454,97573.0,97572.0,6e-05]
[1733829669486,0.24258454,97573.0,97572.0,0.00326209]
[1733829670992,0.24258454,97573.0,97572.0,0.05448809]
[1733829671695,0.120425,97573.0,97572.0,0.05448809]
[1733829677800,0.006,97573.0,97572.0,0.05448825]
[1733829678001,0.12801281,97573.0,97572.0,0.05448825]
[1733829678195,0.006,97573.0,97572.0,0.05448825]
[1733829678899,0.12801281,97573.0,97572.0,0.05448825]
[1733829679104,0.006,97573.0,97572.0,0.05448825]
[1733829679696,0.12801281,97573.0,97572.0,0.05448825]
[1733829680801,0.006,97573.0,97572.0,0.05448825]
[1733829681202,0.006,97573.0,97572.0,0.05448811]
[1733829684303,0.006,97573.0,97572.0,0.051286]
[1733829684500,0.006,97573.0,97572.0,0.05448808]
[1733829686207,0.006,97573.0,97572.0,0.051286]
[1733829686412,0.006,97573.0,97572.0,0.05448808]
[1733829688204,0.006,97573.0,97572.0,0.051286]
[1733829688399,0.006,97573.0,97572.0,0.05448807]
[1733829690510,0.006,97573.0,97572.0,0.00326207]
[1733829691908,0.006,97573.0,97572.0,0.00326208]
[1733829693008,0.006,97573.0,97572.0,0.05448808]
[1733829693913,0.006,97573.0,97572.0,0.00326208]
[1733829694812,0.006,97573.0,97572.0,0.05448808]
[1733829697415,0.006,97573.0,97572.0,0.23870988]
[1733829697813,0.006,97573.0,97572.0,0.23871002]
[1733829699720,0.006,97573.0,97572.0,0.05448822]
[1733829701221,0.006,97573.0,97572.0,0.051286]
[1733829701422,0.006,97573.0,97572.0,0.05448822]
[1733829703321,0.006,97573.0,97572.0,0.23871002]
[1733829704520,0.006,97573.0,97572.0,0.05448822]
[1733829705017,0.006,97573.0,97572.0,0.23876165]
[1733829706327,0.006,97573.0,97572.0,0.05448822]
[1733829706715,0.057225,97573.0,97572.0,0.05448822]
[1733829707636,0.057225,97573.0,97572.0,0.30015315]
[1733829708123,0.057225,97573.0,97572.0,0.30015317]
[1733829711227,0.057225,97573.0,97572.0,0.29695093]
[1733829711525,0.057225,97573.0,97572.0,0.05448824]
[1733829711730,0.418025,97573.0,97572.0,0.05448824]
[1733829712028,0.57044491,97573.0,97572.0,0.05448824]
[1733829712230,0.418025,97573.0,97572.0,0.05448824]
[1733829712416,0.46783346,97573.0,97572.0,0.05448824]
[1733829713325,0.418025,97573.0,97572.0,0.05448824]
[1733829714131,0.57080127,97573.0,97572.0,0.05448824]
[1733829714331,0.418025,97573.0,97572.0,0.05448824]
[1733829714637,0.418025,97573.0,97572.0,0.05448837]
[1733829715225,0.57079617,97573.0,97572.0,0.05448837]
[1733829715426,0.418025,97573.0,97572.0,0.05448837]
[1733829716634,0.3668,97573.0,97572.0,0.05448837]
[1733829716833,0.418025,97573.0,97572.0,0.05448837]
[1733829719732,0.3668,97573.0,97572.0,0.23880557]
[1733829720946,0.3668,97573.0,97572.0,0.23880544]
[1733829721133,0.3668,97573.0,97572.0,0.05448824]
[1733829722031,0.3668,97573.0,97572.0,0.05442824]
[1733829729946,0.3668,97573.0,97572.0,0.051226]
[1733829730148,0.3668,97573.0,97572.0,0.05442824]
[1733829732935,0.3668,97573.0,97572.0,0.30009317]
[1733829733132,0.3668,97573.0,97572.0,0.30009302]
[1733829733337,0.3668,97573.0,97572.0,0.05442809]
[1733829733845,0.3668,97573.0,97572.0,0.39612173]
[1733829734040,0.3668,97573.0,97572.0,0.33442515]
[1733829734445,0.3668,97573.0,97572.0,0.39611372]
[1733829734642,0.3668,97573.0,97572.0,0.60682829]
[1733829734843,0.3668,97573.0,97572.0,0.64168217]
[1733829735038,0.3668,97573.0,97572.0,0.36150124]
[1733829735445,0.3668,97573.0,97572.0,0.05442809]
[1733829736335,0.3668,97573.0,97572.0,0.05442786]
[1733829746549,0.3668,97573.0,97572.0,0.05442785]